[Event "*** SCC Grand Prix: Titled Tuesday Blitz"]
[Site "Chess.com"]
[Date "2020.06.02"]
[Round "3"]
[White "Munkhzul_Turmunkh"]
[Black "sorrm8thatscheckm8"]
[Result "1/2-1/2"]
[WhiteElo "2575"]
[BlackElo "2385"]
[TimeControl "180+1"]
[EndTime "10:30:20 PDT"]
[Termination "Game drawn by repetition"]

1. e4 {[%clk 0:03:00.9]} 1... c5 {[%clk 0:02:55.9]} 2. Nf3 {[%clk 0:03:00.4]}
2... Nc6 {[%clk 0:02:47.7]} 3. d4 {[%clk 0:03:00.4]} 3... cxd4 {[%clk
0:02:48.6]} 4. Nxd4 {[%clk 0:03:01.3]} 4... Nf6 {[%clk 0:02:49.1]} 5. Nc3 {[%clk
0:03:00.8]} 5... e5 {[%clk 0:02:48.8]} 6. Ndb5 {[%clk 0:03:00.5]} 6... d6 {[%clk
0:02:49.3]} 7. Bg5 {[%clk 0:02:58.7]} 7... a6 {[%clk 0:02:49.6]} 8. Na3 {[%clk
0:02:58]} 8... b5 {[%clk 0:02:49.5]} 9. Nd5 {[%clk 0:02:57.2]} 9... Be7 {[%clk
0:02:49.4]} 10. Bxf6 {[%clk 0:02:56]} 10... Bxf6 {[%clk 0:02:49.9]} 11. c3
{[%clk 0:02:55.4]} 11... Bg5 {[%clk 0:02:50.1]} 12. Nc2 {[%clk 0:02:53.6]} 12...
Rb8 {[%clk 0:02:50.7]} 13. a4 {[%clk 0:02:51.3]} 13... bxa4 {[%clk 0:02:50.4]}
14. Ncb4 {[%clk 0:02:50.7]} 14... Nxb4 {[%clk 0:02:50.9]} 15. Nxb4 {[%clk
0:02:50]} 15... Bd7 {[%clk 0:02:33.6]} 16. Bxa6 {[%clk 0:02:48.8]} 16... O-O
{[%clk 0:02:22.4]} 17. O-O {[%clk 0:02:43.1]} 17... Qb6 {[%clk 0:02:17.8]} 18.
Bd3 {[%clk 0:02:27.6]} 18... g6 {[%clk 0:02:05.2]} 19. Bc2 {[%clk 0:02:21.4]}
19... Bb5 {[%clk 0:02:04.7]} 20. Re1 {[%clk 0:02:15.9]} 20... f5 {[%clk
0:01:36.8]} 21. Qd5+ {[%clk 0:02:01.9]} 21... Kh8 {[%clk 0:01:08.7]} 22. exf5
{[%clk 0:02:00.4]} 22... gxf5 {[%clk 0:01:09.3]} 23. Bxa4 {[%clk 0:01:49.7]}
23... Qc5 {[%clk 0:01:06.7]} 24. Bxb5 {[%clk 0:01:43.2]} 24... Qxd5 {[%clk
0:01:04.8]} 25. Nxd5 {[%clk 0:01:44.1]} 25... Rxb5 {[%clk 0:01:05.4]} 26. Nb4
{[%clk 0:01:37.9]} 26... Kg7 {[%clk 0:01:01.7]} 27. Red1 {[%clk 0:01:29]} 27...
Rb6 {[%clk 0:00:57.3]} 28. Ra7+ {[%clk 0:01:17.1]} 28... Rf7 {[%clk 0:00:53.6]}
29. Ra8 {[%clk 0:01:08.3]} 29... Bf6 {[%clk 0:00:46.6]} 30. f3 {[%clk
0:01:01.4]} 30... Rfb7 {[%clk 0:00:43.9]} 31. Kf2 {[%clk 0:00:55.7]} 31... Be7
{[%clk 0:00:39.4]} 32. Rd5 {[%clk 0:00:45.9]} 32... Rb5 {[%clk 0:00:36.9]} 33.
Rxb5 {[%clk 0:00:38.5]} 33... Rxb5 {[%clk 0:00:37.8]} 34. Ra7 {[%clk 0:00:34.9]}
34... Kf6 {[%clk 0:00:34.8]} 35. Nd3 {[%clk 0:00:25.7]} 35... e4 {[%clk
0:00:33.5]} 36. Nf4 {[%clk 0:00:22.8]} 36... Rxb2+ {[%clk 0:00:20.3]} 37. Kg3
{[%clk 0:00:22.3]} 37... Rd2 {[%clk 0:00:18.8]} 38. c4 {[%clk 0:00:19.7]} 38...
Bd8 {[%clk 0:00:17.3]} 39. Nd5+ {[%clk 0:00:17.1]} 39... Ke6 {[%clk 0:00:12.6]}
40. Nf4+ {[%clk 0:00:15.9]} 40... Ke5 {[%clk 0:00:11]} 41. Rd7 {[%clk
0:00:12.7]} 41... Bg5 {[%clk 0:00:10.4]} 42. Nd5 {[%clk 0:00:11.3]} 42... f4+
{[%clk 0:00:09.4]} 43. Kh3 {[%clk 0:00:10.2]} 43... e3 {[%clk 0:00:07.9]} 44.
Rg7 {[%clk 0:00:08.7]} 44... Bf6 {[%clk 0:00:06.7]} 45. Rg8 {[%clk 0:00:08.6]}
45... e2 {[%clk 0:00:07.1]} 46. Re8+ {[%clk 0:00:08.4]} 46... Kf5 {[%clk
0:00:06.6]} 47. g4+ {[%clk 0:00:06.9]} 47... fxg3 {[%clk 0:00:05.5]} 48. hxg3
{[%clk 0:00:05.3]} 48... Bd8 {[%clk 0:00:05.9]} 49. g4+ {[%clk 0:00:04.6]} 49...
Kg6 {[%clk 0:00:05]} 50. Nf4+ {[%clk 0:00:04.5]} 50... Kf7 {[%clk 0:00:04.6]}
51. Rxe2 {[%clk 0:00:04.2]} 51... Rxe2 {[%clk 0:00:05.5]} 52. Nxe2 {[%clk
0:00:05.1]} 52... Bb6 {[%clk 0:00:06.4]} 53. Kg3 {[%clk 0:00:04.9]} 53... Ke6
{[%clk 0:00:07.3]} 54. f4 {[%clk 0:00:05.1]} 54... Bc5 {[%clk 0:00:08.2]} 55.
Kf3 {[%clk 0:00:05.5]} 55... Kf6 {[%clk 0:00:09.1]} 56. Ke4 {[%clk 0:00:05.8]}
56... h6 {[%clk 0:00:09.5]} 57. Ng3 {[%clk 0:00:06.2]} 57... Ba3 {[%clk
0:00:09.4]} 58. Nh5+ {[%clk 0:00:06.6]} 58... Kg6 {[%clk 0:00:09.5]} 59. Ng3
{[%clk 0:00:06.8]} 59... Kf6 {[%clk 0:00:09.4]} 60. Nf5 {[%clk 0:00:07.3]} 60...
Kg6 {[%clk 0:00:07.7]} 61. Ne7+ {[%clk 0:00:07.5]} 61... Kf6 {[%clk 0:00:07.7]}
62. Nd5+ {[%clk 0:00:08.1]} 62... Kg6 {[%clk 0:00:08.1]} 63. Ne3 {[%clk
0:00:08.2]} 63... Kf6 {[%clk 0:00:08.3]} 64. Nf5 {[%clk 0:00:08.4]} 64... Kg6
{[%clk 0:00:08.6]} 65. Ng3 {[%clk 0:00:08.5]} 65... Kf6 {[%clk 0:00:09.1]}
1/2-1/2

[Event "*** SCC Grand Prix: Titled Tuesday Blitz"]
[Site "Chess.com"]
[Date "2020.06.02"]
[Round "3"]
[White "Crazy_girl99"]
[Black "aleksa74"]
[Result "0-1"]
[WhiteElo "2415"]
[BlackElo "2668"]
[TimeControl "180+1"]
[EndTime "10:30:24 PDT"]
[Termination "aleksa74 won by resignation"]

1. e4 {[%clk 0:03:00.9]} 1... c6 {[%clk 0:02:57.9]} 2. d4 {[%clk 0:03:00.4]}
2... d5 {[%clk 0:02:58.3]} 3. e5 {[%clk 0:02:54.2]} 3... Bf5 {[%clk 0:02:58.1]}
4. h4 {[%clk 0:02:53.3]} 4... h5 {[%clk 0:02:57.3]} 5. c4 {[%clk 0:02:34.2]}
5... e6 {[%clk 0:02:55.3]} 6. Nc3 {[%clk 0:02:34.1]} 6... Nd7 {[%clk 0:02:54]}
7. Nge2 {[%clk 0:02:33.9]} 7... Ne7 {[%clk 0:02:52.5]} 8. Ng3 {[%clk 0:02:33.3]}
8... Bg6 {[%clk 0:02:52.3]} 9. Bg5 {[%clk 0:02:24.6]} 9... dxc4 {[%clk
0:02:50.5]} 10. Bxc4 {[%clk 0:02:23.5]} 10... Qb6 {[%clk 0:02:47.5]} 11. O-O
{[%clk 0:01:52.3]} 11... Nf5 {[%clk 0:02:36.9]} 12. Nxf5 {[%clk 0:01:45.8]}
12... Bxf5 {[%clk 0:02:36.8]} 13. Na4 {[%clk 0:01:38.6]} 13... Qc7 {[%clk
0:02:28.7]} 14. Rc1 {[%clk 0:01:35.5]} 14... Nb6 {[%clk 0:02:19.2]} 15. Bb3
{[%clk 0:01:19.5]} 15... Be7 {[%clk 0:02:16.2]} 16. Nxb6 {[%clk 0:01:10.4]}
16... axb6 {[%clk 0:02:15.2]} 17. d5 {[%clk 0:01:06.8]} 17... exd5 {[%clk
0:02:06.1]} 18. Bxd5 {[%clk 0:01:00.4]} 18... Bxg5 {[%clk 0:01:59.8]} 19. hxg5
{[%clk 0:01:00.3]} 19... Kf8 {[%clk 0:01:39.3]} 20. Bb3 {[%clk 0:00:51]} 20...
Qxe5 {[%clk 0:00:57]} 21. Re1 {[%clk 0:00:47.5]} 21... Qc7 {[%clk 0:00:53.4]}
22. Qf3 {[%clk 0:00:43.4]} 22... Bg6 {[%clk 0:00:52.6]} 23. Rcd1 {[%clk
0:00:39.7]} 23... Rd8 {[%clk 0:00:42.2]} 24. Rxd8+ {[%clk 0:00:21.8]} 24... Qxd8
{[%clk 0:00:43.1]} 25. Qf4 {[%clk 0:00:20.2]} 25... Kg8 {[%clk 0:00:41.7]} 26.
Rd1 {[%clk 0:00:18.6]} 26... Qe8 {[%clk 0:00:41.9]} 27. Qc7 {[%clk 0:00:17.4]}
27... Kh7 {[%clk 0:00:35]} 28. Rd7 {[%clk 0:00:17.1]} 28... Qe1+ {[%clk
0:00:33.4]} 29. Kh2 {[%clk 0:00:17]} 29... Qxf2 {[%clk 0:00:31.4]} 30. Bxf7
{[%clk 0:00:17]} 30... Qh4+ {[%clk 0:00:30.8]} 31. Kg1 {[%clk 0:00:16.9]} 31...
Qe1+ {[%clk 0:00:27.3]} 32. Kh2 {[%clk 0:00:16.6]} 32... Qh4+ {[%clk 0:00:27.5]}
33. Kg1 {[%clk 0:00:16.8]} 33... Qxg5 {[%clk 0:00:27.9]} 34. Bc4 {[%clk
0:00:14.5]} 34... Be4 {[%clk 0:00:27.1]} 35. Bf1 {[%clk 0:00:14.4]} 35... Rf8
{[%clk 0:00:26.2]} 36. Rf7 {[%clk 0:00:13.4]} 36... Rxf7 {[%clk 0:00:24.6]} 37.
Qxf7 {[%clk 0:00:14.3]} 37... Qe3+ {[%clk 0:00:22]} 38. Kh2 {[%clk 0:00:13.9]}
38... Bg6 {[%clk 0:00:21.4]} 39. Qxb7 {[%clk 0:00:10.6]} 39... Qe5+ {[%clk
0:00:20.8]} 40. Kg1 {[%clk 0:00:10.3]} 40... Qd4+ {[%clk 0:00:20.8]} 41. Kh2
{[%clk 0:00:10.1]} 41... Qxb2 {[%clk 0:00:20.1]} 42. Qxc6 {[%clk 0:00:10]} 42...
Qf2 {[%clk 0:00:19]} 43. Qf3 {[%clk 0:00:08.9]} 43... Qxf3 {[%clk 0:00:18.2]}
44. gxf3 {[%clk 0:00:09.8]} 44... Bb1 {[%clk 0:00:16.4]} 45. a3 {[%clk
0:00:10.1]} 45... Kg6 {[%clk 0:00:17.1]} 46. Kg3 {[%clk 0:00:10.2]} 46... Kf6
{[%clk 0:00:16.9]} 47. f4 {[%clk 0:00:09.9]} 47... g6 {[%clk 0:00:16.1]} 48. Bb5
{[%clk 0:00:09.6]} 48... Ke6 {[%clk 0:00:15.7]} 49. Be8 {[%clk 0:00:09.6]} 49...
Bf5 {[%clk 0:00:10.9]} 50. Kh4 {[%clk 0:00:09.2]} 50... Kf6 {[%clk 0:00:11]} 51.
Bb5 {[%clk 0:00:08.9]} 51... Ke7 {[%clk 0:00:10.6]} 52. Kg5 {[%clk 0:00:07.9]}
52... Kd6 {[%clk 0:00:11]} 53. Be8 {[%clk 0:00:07.9]} 53... Kd5 {[%clk
0:00:06.8]} 54. Bxg6 {[%clk 0:00:07.1]} 54... Bxg6 {[%clk 0:00:07.1]} 55. Kxg6
{[%clk 0:00:08]} 55... h4 {[%clk 0:00:07.6]} 56. f5 {[%clk 0:00:08.6]} 56... h3
{[%clk 0:00:08.2]} 57. f6 {[%clk 0:00:09.3]} 57... h2 {[%clk 0:00:08.8]} 58. f7
{[%clk 0:00:10]} 58... h1=Q {[%clk 0:00:09.1]} 59. f8=Q {[%clk 0:00:10.5]} 59...
Qg2+ {[%clk 0:00:09.3]} 60. Kh5 {[%clk 0:00:10.6]} 60... Qh3+ {[%clk 0:00:09.3]}
61. Kg5 {[%clk 0:00:10.8]} 61... Qg3+ {[%clk 0:00:09.3]} 62. Kh5 {[%clk
0:00:11.1]} 62... Qe5+ {[%clk 0:00:09.1]} 63. Kh4 {[%clk 0:00:10.8]} 63... Qd4+
{[%clk 0:00:07.4]} 64. Kg3 {[%clk 0:00:10.5]} 64... Qc5 {[%clk 0:00:06]} 65.
Qf5+ {[%clk 0:00:09.4]} 65... Kc4 {[%clk 0:00:06]} 66. Qc2+ {[%clk 0:00:09.9]}
66... Kb5 {[%clk 0:00:06]} 67. Qb3+ {[%clk 0:00:10.1]} 67... Ka5 {[%clk
0:00:06.2]} 68. Kf3 {[%clk 0:00:10.2]} 68... Qd4 {[%clk 0:00:06.3]} 69. Ke2
{[%clk 0:00:10.3]} 69... b5 {[%clk 0:00:06.4]} 70. Qd3 {[%clk 0:00:07]} 70...
Qb2+ {[%clk 0:00:06.2]} 71. Qd2+ {[%clk 0:00:06.7]} 71... Qxd2+ {[%clk
0:00:06.4]} 72. Kxd2 {[%clk 0:00:07.6]} 72... Ka4 {[%clk 0:00:07.2]} 73. Kc1
{[%clk 0:00:08]} 73... Kxa3 {[%clk 0:00:07.3]} 74. Kb1 {[%clk 0:00:08.6]} 74...
Kb3 {[%clk 0:00:07.8]} 75. Ka1 {[%clk 0:00:09]} 75... b4 {[%clk 0:00:06.6]} 76.
Kb1 {[%clk 0:00:09.4]} 76... Ka3 {[%clk 0:00:07.1]} 77. Ka1 {[%clk 0:00:09.8]}
77... b3 {[%clk 0:00:07.6]} 78. Kb1 {[%clk 0:00:09.8]} 78... b2 {[%clk
0:00:08.2]} 0-1

[Event "*** SCC Grand Prix: Titled Tuesday Blitz"]
[Site "Chess.com"]
[Date "2020.06.02"]
[Round "3"]
[White "elegant285"]
[Black "Gennady_Kozlov"]
[Result "0-1"]
[WhiteElo "2367"]
[BlackElo "2568"]
[TimeControl "180+1"]
[EndTime "10:30:24 PDT"]
[Termination "Gennady_Kozlov won by resignation"]

1. d4 {[%clk 0:03:00.2]} 1... e6 {[%clk 0:02:57.7]} 2. c4 {[%clk 0:02:59.8]}
2... b6 {[%clk 0:02:57.1]} 3. a3 {[%clk 0:02:58]} 3... Bb7 {[%clk 0:02:56]} 4.
Nc3 {[%clk 0:02:58.1]} 4... Nf6 {[%clk 0:02:25.9]} 5. d5 {[%clk 0:02:57.1]} 5...
Be7 {[%clk 0:02:26.8]} 6. e4 {[%clk 0:02:56.6]} 6... d6 {[%clk 0:02:26.2]} 7.
Bd3 {[%clk 0:02:56.1]} 7... e5 {[%clk 0:02:25.5]} 8. Nge2 {[%clk 0:02:56.2]}
8... a5 {[%clk 0:02:26.1]} 9. O-O {[%clk 0:02:54.5]} 9... Na6 {[%clk 0:02:26.7]}
10. Rb1 {[%clk 0:02:51.6]} 10... Nc5 {[%clk 0:02:26.9]} 11. Bc2 {[%clk 0:02:51]}
11... O-O {[%clk 0:02:23.4]} 12. b4 {[%clk 0:02:49.8]} 12... axb4 {[%clk
0:02:24.3]} 13. axb4 {[%clk 0:02:50.3]} 13... Ncd7 {[%clk 0:02:25]} 14. f3
{[%clk 0:02:43.1]} 14... Ba6 {[%clk 0:02:20]} 15. Bd3 {[%clk 0:02:38.2]} 15...
Re8 {[%clk 0:02:18.4]} 16. Be3 {[%clk 0:02:35.2]} 16... Nf8 {[%clk 0:02:06.8]}
17. Ra1 {[%clk 0:02:33.8]} 17... Ng6 {[%clk 0:02:05.8]} 18. Ra3 {[%clk
0:02:23.1]} 18... Nh5 {[%clk 0:02:01.1]} 19. Qd2 {[%clk 0:02:14.1]} 19... Bb7
{[%clk 0:01:56.9]} 20. Rfa1 {[%clk 0:02:12.7]} 20... Rxa3 {[%clk 0:01:55.7]} 21.
Rxa3 {[%clk 0:02:12.7]} 21... h6 {[%clk 0:01:53.9]} 22. Ra7 {[%clk 0:02:09.9]}
22... Qb8 {[%clk 0:01:52.8]} 23. Ra2 {[%clk 0:02:01.5]} 23... Nh4 {[%clk
0:01:35.9]} 24. Nb5 {[%clk 0:01:44.3]} 24... Qc8 {[%clk 0:01:32.1]} 25. Qe1
{[%clk 0:01:38.4]} 25... Ng6 {[%clk 0:01:30.7]} 26. Qf2 {[%clk 0:01:32]} 26...
Bg5 {[%clk 0:01:30.1]} 27. c5 {[%clk 0:01:22.5]} 27... bxc5 {[%clk 0:01:24.5]}
28. bxc5 {[%clk 0:01:22.4]} 28... dxc5 {[%clk 0:01:21.3]} 29. Bxg5 {[%clk
0:01:21.6]} 29... hxg5 {[%clk 0:01:18.8]} 30. Qxc5 {[%clk 0:01:21.8]} 30... Nhf4
{[%clk 0:01:18.1]} 31. Nxf4 {[%clk 0:01:20.9]} 31... Nxf4 {[%clk 0:01:17.6]} 32.
Bf1 {[%clk 0:01:21.2]} 32... Qd7 {[%clk 0:01:11]} 33. Qxc7 {[%clk 0:01:16.7]}
33... Qxc7 {[%clk 0:01:10.3]} 34. Nxc7 {[%clk 0:01:16.9]} 34... Rc8 {[%clk
0:01:10.7]} 35. d6 {[%clk 0:01:15.4]} 35... Bc6 {[%clk 0:01:10.7]} 36. Ba6
{[%clk 0:01:11.9]} 36... Rd8 {[%clk 0:01:08.9]} 37. Rd2 {[%clk 0:01:12]} 37...
Kf8 {[%clk 0:01:04.2]} 38. Bb5 {[%clk 0:01:11.8]} 38... Bxb5 {[%clk 0:01:03.1]}
39. Nxb5 {[%clk 0:01:11.9]} 39... f6 {[%clk 0:01:03.7]} 40. Nc7 {[%clk
0:01:08.7]} 40... Kf7 {[%clk 0:01:03.2]} 41. Kf2 {[%clk 0:01:05]} 41... Rd7
{[%clk 0:01:02]} 42. Nb5 {[%clk 0:01:04.5]} 42... Ne6 {[%clk 0:01:01.2]} 43. Ke3
{[%clk 0:01:02.9]} 43... Nc5 {[%clk 0:01:00]} 44. g3 {[%clk 0:01:02]} 44... Ke6
{[%clk 0:00:57.1]} 45. Rc2 {[%clk 0:01:01.8]} 45... Nb7 {[%clk 0:00:56.1]} 46.
Rc7 {[%clk 0:01:01.7]} 46... Nxd6 {[%clk 0:00:55.1]} 47. Rxd7 {[%clk 0:01:01.2]}
47... Kxd7 {[%clk 0:00:56]} 48. Nc3 {[%clk 0:00:58.8]} 48... Ke6 {[%clk
0:00:55]} 49. Nd5 {[%clk 0:00:58.3]} 49... Nc4+ {[%clk 0:00:55.4]} 50. Kd3
{[%clk 0:00:58.2]} 50... Nb2+ {[%clk 0:00:52.7]} 51. Kc2 {[%clk 0:00:57.9]}
51... Nc4 {[%clk 0:00:50]} 52. Kd3 {[%clk 0:00:58.2]} 52... Nd6 {[%clk
0:00:50.5]} 53. Ke3 {[%clk 0:00:58.2]} 53... f5 {[%clk 0:00:49.7]} 54. Nc7+
{[%clk 0:00:57.8]} 54... Kd7 {[%clk 0:00:49.1]} 55. Nd5 {[%clk 0:00:58.2]} 55...
f4+ {[%clk 0:00:49.2]} 56. gxf4 {[%clk 0:00:58.6]} 56... gxf4+ {[%clk
0:00:49.6]} 57. Kf2 {[%clk 0:00:59]} 57... Ke6 {[%clk 0:00:49.9]} 58. Nc3 {[%clk
0:00:58.8]} 58... Nc4 {[%clk 0:00:49.1]} 59. Kg2 {[%clk 0:00:58.8]} 59... Kf6
{[%clk 0:00:48.3]} 60. Kh3 {[%clk 0:00:58.7]} 60... Kg5 {[%clk 0:00:47.4]} 61.
Nd5 {[%clk 0:00:58.6]} 61... Nd6 {[%clk 0:00:45.2]} 62. Kg2 {[%clk 0:00:57.2]}
62... Ne8 {[%clk 0:00:44.1]} 63. Ne7 {[%clk 0:00:57]} 63... Kf6 {[%clk
0:00:41.8]} 64. Nf5 {[%clk 0:00:56.6]} 64... g6 {[%clk 0:00:40.6]} 65. Nh6
{[%clk 0:00:56.8]} 65... Ke6 {[%clk 0:00:37.3]} 66. Ng4 {[%clk 0:00:57]} 66...
Nd6 {[%clk 0:00:37.1]} 67. Kh3 {[%clk 0:00:56.5]} 67... Nc4 {[%clk 0:00:37.1]}
68. Kh4 {[%clk 0:00:56]} 68... Nd2 {[%clk 0:00:36.6]} 69. Kg5 {[%clk 0:00:54.4]}
69... Nxf3+ {[%clk 0:00:36.8]} 70. Kxg6 {[%clk 0:00:54.8]} 70... Nd2 {[%clk
0:00:26]} 71. Nf2 {[%clk 0:00:52.7]} 71... f3 {[%clk 0:00:26]} 72. h4 {[%clk
0:00:52.4]} 72... Nxe4 {[%clk 0:00:19.6]} 73. Nxe4 {[%clk 0:00:52.1]} 73... Kd5
{[%clk 0:00:20.5]} 74. Nf2 {[%clk 0:00:51.3]} 74... e4 {[%clk 0:00:19.6]} 75.
Kf5 {[%clk 0:00:47.3]} 75... e3 {[%clk 0:00:19.3]} 76. Ng4 {[%clk 0:00:46.6]}
76... e2 {[%clk 0:00:18.6]} 77. Ne3+ {[%clk 0:00:45.9]} 77... Kc6 {[%clk
0:00:17.9]} 78. Nc2 {[%clk 0:00:43.7]} 78... f2 {[%clk 0:00:18]} 79. Nd4+ {[%clk
0:00:42.1]} 79... Kd7 {[%clk 0:00:18.5]} 80. Nxe2 {[%clk 0:00:42.2]} 80... f1=Q+
{[%clk 0:00:19.1]} 81. Nf4 {[%clk 0:00:42.9]} 81... Qf2 {[%clk 0:00:19.7]} 82.
h5 {[%clk 0:00:43.1]} 82... Ke7 {[%clk 0:00:20.3]} 83. h6 {[%clk 0:00:42.3]}
83... Kf7 {[%clk 0:00:20.7]} 84. Kg5 {[%clk 0:00:42.3]} 84... Qg3+ {[%clk
0:00:20.6]} 85. Kf5 {[%clk 0:00:42]} 85... Qh4 {[%clk 0:00:21.1]} 86. Ng6 {[%clk
0:00:40.1]} 86... Qh5+ {[%clk 0:00:20.6]} 0-1

[Event "*** SCC Grand Prix: Titled Tuesday Blitz"]
[Site "Chess.com"]
[Date "2020.06.02"]
[Round "3"]
[White "Margarita2907"]
[Black "sopo-tereladze"]
[Result "0-1"]
[WhiteElo "2065"]
[BlackElo "2353"]
[TimeControl "180+1"]
[EndTime "10:30:31 PDT"]
[Termination "sopo-tereladze won by resignation"]

1. e4 {[%clk 0:03:00.4]} 1... e5 {[%clk 0:02:59.3]} 2. Nf3 {[%clk 0:02:59.2]}
2... Nc6 {[%clk 0:02:59.7]} 3. Bb5 {[%clk 0:02:58.3]} 3... a6 {[%clk 0:02:59.4]}
4. Ba4 {[%clk 0:02:58.2]} 4... Nf6 {[%clk 0:02:58.2]} 5. d3 {[%clk 0:02:58.1]}
5... b5 {[%clk 0:02:55.3]} 6. Bb3 {[%clk 0:02:54.5]} 6... Be7 {[%clk 0:02:56.2]}
7. O-O {[%clk 0:02:51.8]} 7... O-O {[%clk 0:02:55.3]} 8. h3 {[%clk 0:02:50.7]}
8... d6 {[%clk 0:02:49.5]} 9. c3 {[%clk 0:02:49.2]} 9... Na5 {[%clk 0:02:49.7]}
10. Bc2 {[%clk 0:02:47.9]} 10... c5 {[%clk 0:02:50.6]} 11. d4 {[%clk 0:02:43.1]}
11... cxd4 {[%clk 0:02:51.5]} 12. cxd4 {[%clk 0:02:42.3]} 12... Bb7 {[%clk
0:02:51.4]} 13. Re1 {[%clk 0:02:34.8]} 13... Nc6 {[%clk 0:02:48.7]} 14. d5
{[%clk 0:02:20.3]} 14... Nb4 {[%clk 0:02:48.1]} 15. Bb3 {[%clk 0:02:18.3]} 15...
a5 {[%clk 0:02:48.4]} 16. a3 {[%clk 0:02:15.5]} 16... Na6 {[%clk 0:02:48]} 17.
Nc3 {[%clk 0:02:11]} 17... b4 {[%clk 0:02:42]} 18. Na4 {[%clk 0:01:56.1]} 18...
Rc8 {[%clk 0:02:32.7]} 19. Qd3 {[%clk 0:01:47.6]} 19... Re8 {[%clk 0:02:19.5]}
20. Be3 {[%clk 0:01:44.6]} 20... Bf8 {[%clk 0:02:18.4]} 21. Nb6 {[%clk
0:01:30.1]} 21... Rc7 {[%clk 0:02:12.8]} 22. Nc4 {[%clk 0:01:21.4]} 22... Nc5
{[%clk 0:02:07.3]} 23. Bxc5 {[%clk 0:01:12.1]} 23... Rxc5 {[%clk 0:02:08.2]} 24.
axb4 {[%clk 0:01:05.3]} 24... axb4 {[%clk 0:02:09.1]} 25. Ra7 {[%clk 0:01:03.3]}
25... Qb8 {[%clk 0:02:07.8]} 26. Rea1 {[%clk 0:01:01.2]} 26... Nxd5 {[%clk
0:01:53.5]} 27. exd5 {[%clk 0:00:54.5]} 27... e4 {[%clk 0:01:53.3]} 28. Qd2
{[%clk 0:00:48]} 28... exf3 {[%clk 0:01:52.1]} 29. Qxb4 {[%clk 0:00:41.5]} 29...
Bxd5 {[%clk 0:01:47.5]} 30. Qa4 {[%clk 0:00:24.8]} 30... fxg2 {[%clk 0:01:39.4]}
31. Nd2 {[%clk 0:00:16.8]} 31... Bxb3 {[%clk 0:01:37.4]} 32. Nxb3 {[%clk
0:00:15.9]} 32... Rb5 {[%clk 0:01:32.4]} 33. Nd4 {[%clk 0:00:14.6]} 33... Rxb2
{[%clk 0:01:32]} 34. Nc6 {[%clk 0:00:14.7]} 34... Rb1+ {[%clk 0:01:30.9]} 35.
Rxb1 {[%clk 0:00:14.7]} 35... Qxb1+ {[%clk 0:01:31.3]} 36. Kxg2 {[%clk
0:00:15.1]} 36... Qg6+ {[%clk 0:01:28.8]} 37. Kh2 {[%clk 0:00:13.6]} 37... d5
{[%clk 0:01:21.8]} 38. Ra8 {[%clk 0:00:13.5]} 38... Qd6+ {[%clk 0:01:17.6]} 39.
Kg2 {[%clk 0:00:11.9]} 39... Rxa8 {[%clk 0:01:15.5]} 40. Qxa8 {[%clk 0:00:10.8]}
40... g6 {[%clk 0:01:12.4]} 41. Nd4 {[%clk 0:00:10.3]} 41... Kg7 {[%clk
0:01:08.4]} 42. Qa1 {[%clk 0:00:08.8]} 42... Qf6 {[%clk 0:01:06.6]} 43. Qd1
{[%clk 0:00:08.1]} 43... Bc5 {[%clk 0:01:03.8]} 44. Nf3 {[%clk 0:00:08.6]} 44...
d4 {[%clk 0:01:01.9]} 45. Qd3 {[%clk 0:00:08.9]} 45... h6 {[%clk 0:00:52.8]} 46.
Nd2 {[%clk 0:00:09.4]} 46... Qc6+ {[%clk 0:00:51.6]} 47. Ne4 {[%clk 0:00:09.6]}
47... f5 {[%clk 0:00:49.1]} 48. f3 {[%clk 0:00:08.8]} 48... fxe4 {[%clk
0:00:48.5]} 49. fxe4 {[%clk 0:00:09.7]} 49... Qe6 {[%clk 0:00:45.5]} 50. Kf3
{[%clk 0:00:09.6]} 50... Qf6+ {[%clk 0:00:44.6]} 51. Kg3 {[%clk 0:00:09.3]}
51... Qe5+ {[%clk 0:00:44.4]} 52. Kg2 {[%clk 0:00:09.6]} 52... Bd6 {[%clk
0:00:45]} 53. Qa6 {[%clk 0:00:08.9]} 53... Qg3+ {[%clk 0:00:43.7]} 54. Kf1
{[%clk 0:00:08.4]} 54... Qxh3+ {[%clk 0:00:43.4]} 55. Ke1 {[%clk 0:00:08.3]}
55... Qe3+ {[%clk 0:00:42.9]} 56. Kd1 {[%clk 0:00:08.4]} 56... Qb3+ {[%clk
0:00:41.5]} 57. Ke1 {[%clk 0:00:07.8]} 57... Qb4+ {[%clk 0:00:40.8]} 58. Kf2
{[%clk 0:00:07.4]} 58... h5 {[%clk 0:00:40.8]} 59. Qa7+ {[%clk 0:00:06.9]} 59...
Kh6 {[%clk 0:00:40.1]} 60. Qf7 {[%clk 0:00:07.4]} 60... Qc5 {[%clk 0:00:38]} 61.
Qf6 {[%clk 0:00:07]} 61... d3+ {[%clk 0:00:37]} 62. Ke1 {[%clk 0:00:05.6]} 62...
Qc1+ {[%clk 0:00:33.9]} 63. Kf2 {[%clk 0:00:05.4]} 63... Qf4+ {[%clk 0:00:34.8]}
64. Qxf4+ {[%clk 0:00:05]} 64... Bxf4 {[%clk 0:00:35.7]} 65. Ke1 {[%clk
0:00:05]} 65... d2+ {[%clk 0:00:35.4]} 66. Kd1 {[%clk 0:00:04.2]} 66... Kg7
{[%clk 0:00:36.3]} 67. Ke2 {[%clk 0:00:04.6]} 67... Kf6 {[%clk 0:00:36.1]} 68.
Kd1 {[%clk 0:00:05.5]} 68... Ke5 {[%clk 0:00:35.5]} 69. Ke2 {[%clk 0:00:06.4]}
69... Kxe4 {[%clk 0:00:36.4]} 70. Kd1 {[%clk 0:00:06.5]} 70... h4 {[%clk
0:00:35.7]} 71. Ke2 {[%clk 0:00:06.3]} 71... h3 {[%clk 0:00:36.6]} 72. Kd1
{[%clk 0:00:05.6]} 72... h2 {[%clk 0:00:36.1]} 73. Kc2 {[%clk 0:00:03.5]} 73...
h1=Q {[%clk 0:00:35.1]} 0-1